[Event "ECo-C Extraliga 2023-24"]
[Site "Slovakia"]
[Date "2024.02.24"]
[Round "7.6"]
[White "Kalisky, Vladimir"]
[Black "Ihnat, Marek"]
[Result "1/2-1/2"]
[ECO "B13"]
[WhiteElo "2175"]
[BlackElo "2111"]
[Annotator "RC"]
[PlyCount "169"]
[EventDate "2023.10.06"]
[EventType "team-tourn"]
[EventCountry "SVK"]
[SourceTitle "playchess.com"]
[Source "ChessBase"]
[SourceQuality "1"]
[TimeControl "40/5400+30:1800+30"]

1. e4 {[%emt 0:00:05]} c6 {[%emt 0:00:19]} 2. d4 {[%emt 0:00:08]} d5 {[%emt 0:00:06]} 3. exd5 {[%emt 0:00:14]} cxd5 {[%emt 0:00:08]} 4. c3 {[%emt 0:00:05]} Nc6 {[%emt 0:00:07]} 5. Bf4 {[%emt 0:00:07]} Bf5 {[%emt 0:01:10]} 6. Nf3 {[%emt 0:01:11]} e6 {[%emt 0:00:05]} 7. Qb3 {[%emt 0:02:31]} Qd7 {[%emt 0:03:28]} 8. Nbd2 {[%emt 0:05:05]} f6 {[%emt 0:00:01]} 9. h3 g5 {[%emt 0:04:11]} 10. Bg3 {[%emt 0:08:55]} h5 {[%emt 0:08:37]} 11. Be2 {[%emt 0:04:43]} Nh6 {[%emt 0:04:47]} 12. Nf1 {[%emt 0:09:10]} h4 {[%emt 0:15:43]} 13. Bh2 {[%emt 0:00:45]} Be4 {[%emt 0:01:02]} 14. Ne3 {[%emt 0:01:12]} Nf5 {[%emt 0:03:50]} 15. Ng4 {[%emt 0:11:24]} Be7 {[%emt 0:03:07]} 16. O-O {[%emt 0:11:42]} Nh6 {[%emt 0:00:58]} 17. Nd2 {[%emt 0:24:58]} Bg6 {[%emt 0:00:43]} 18. f4 {[%emt 0:01:27]} gxf4 {[%emt 0:06:09]} 19. Nxh6 {[%emt 0:03:33]} Rxh6 {[%emt 0:00:08]} 20. Bxf4 {[%emt 0:00:54]} Rh7 {[%emt 0:00:56]} 21. Rae1 {[%emt 0:00:57]} Bf5 {[%emt 0:01:30]} 22. Qd1 {[%emt 0:03:17]} O-O-O {[%emt 0:01:24]} 23. Bg4 {[%emt 0:00:07]} Bxg4 {[%emt 0:11:29]} 24. Qxg4 {[%emt 0:00:13]} e5 {[%emt 0:00:38]} 25. Qxd7+ {[%emt 0:01:49]} Rxd7 {[%emt 0:01:41]} 26. dxe5 {[%emt 0:01:22]} fxe5 {[%emt 0:00:32]} 27. Bxe5 {[%emt 0:00:50]} Nxe5 {[%emt 0:00:07]} 28. Rxe5 {[%emt 0:00:07]} d4 {[%emt 0:01:14]} 29. cxd4 {[%emt 0:02:05]} Rxd4 {[%emt 0:00:15]} 30. Rc1+ {[%emt 0:01:07]} Kd7 {[%emt 0:01:02]} 31. Nf3 {[%emt 0:00:17]} Rd6 {[%emt 0:02:07]} 32. Rec5 {[%emt 0:02:37]} Rb6 {[%emt 0:02:51]} 33. Rd1+ {[%emt 0:00:43]} Rd6 {[%emt 0:03:23]} 34. Rcc1 {[%emt 0:00:55]} Rxd1+ {[%emt 0:02:02]} 35. Rxd1+ {[%emt 0:00:00]} Kc7 {[%emt 0:00:10]} 36. b3 {[%emt 0:00:28]} Bd6 {[%emt 0:00:36]} 37. Rc1+ {[%emt 0:01:53]} Kb6 {[%emt 0:00:09]} 38. Kf2 {[%emt 0:00:38]} Bg3+ {[%emt 0:00:26]} 39. Ke3 {[%emt 0:00:16]} Re7+ {[%emt 0:00:28]} 40. Kd3 {[%emt 0:00:01]} Rd7+ {[%emt 0:00:17]} 41. Kc2 {[%emt 0:30:53]} Rc7+ {[%emt 0:30:35]} 42. Kb1 {[%emt 0:00:03]} Re7 {[%emt 0:03:32]} 43. Rc4 {[%emt 0:00:00]} Re2 {[%emt 0:00:00]} 44. Nxh4 {[%emt 0:00:00]} Bxh4 {[%emt 0:00:00]} 45. Rxh4 {[%emt 0:00:00]} Rxg2 {[%emt 0:00:00]} 46. Rg4 {[%emt 0:00:00]} Rh2 {[%emt 0:00:00]} 47. Rg3 {[%emt 0:00:00]} a6 {[%emt 0:00:00]} 48. a3 {[%emt 0:00:00]} Kb5 {[%emt 0:00:00]} 49. Rc3 {[%emt 0:00:00]} Ka5 {[%emt 0:00:00]} 50. Kc1 {[%emt 0:00:00]} Kb5 {[%emt 0:00:00]} 51. Kd1 {[%emt 0:00:00]} a5 {[%emt 0:00:00]} 52. Ke1 {[%emt 0:00:00]} b6 {[%emt 0:00:00]} 53. Kf1 {[%emt 0:00:00]} Ra2 {[%emt 0:12:22]} 54. a4+ {[%emt 0:00:00]} Kb4 {[%emt 0:00:05]} 55. Rf3 {[%emt 0:00:00]} Rh2 {[%emt 0:06:05]} 56. Kg1 {[%emt 0:00:00]} Rd2 {[%emt 0:00:19]} 57. h4 {[%emt 0:00:00]} Rd5 {[%emt 0:02:38]} 58. Rh3 {[%emt 0:00:00]} Rh5 {[%emt 0:02:23]} 59. Kg2 {[%emt 0:00:00]} Rh6 {[%emt 0:00:10]} 60. h5 {[%emt 0:00:00]} Ka3 {[%emt 0:00:41]} 61. Kf2 {[%emt 0:00:00]} Kb4 {[%emt 0:00:52]} 62. Ke2 {[%emt 0:00:00]} Ka3 {[%emt 0:01:34]} 63. Kd2 {[%emt 0:00:00]} Kb2 {[%emt 0:00:35]} 64. Kd1 {[%emt 0:00:00]} Rd6+ {[%emt 0:00:07]} 65. Ke2 {[%emt 0:00:00]} Rh6 {[%emt 0:00:10]} 66. Kd2 {[%emt 0:00:33]} Rd6+ {[%emt 0:00:21]} 67. Ke3 {[%emt 0:02:45]} Kxb3 {[%emt 0:00:13]} 68. h6 {[%emt 0:00:07]} Rd8 {[%emt 0:01:51]} 69. h7 {[%emt 0:00:25]} Rh8 {[%emt 0:00:02]} 70. Rh4 {[%emt 0:00:42]} b5 {[%emt 0:02:05]} 71. axb5 {[%emt 0:08:27]} a4 {[%emt 0:00:00]} 72. b6 {[%emt 0:02:09]} a3 {[%emt 0:00:04]} 73. Kd4 {[%emt 0:00:37]} a2 {[%emt 0:00:18]} 74. Rh1 {[%emt 0:00:31]} Rxh7 {[%emt 0:00:45]} 75. Rg1 {[%emt 0:00:36]} Kb2 {[%emt 0:01:18]} 76. Rg2+ {[%emt 0:00:04]} Ka3 {[%emt 0:00:37]} 77. Rg1 {[%emt 0:00:17]} Rh3 {[%emt 0:00:46]} 78. Kc5 {[%emt 0:00:30]} Rb3 {[%emt 0:00:22]} 79. Ra1 {[%emt 0:00:24]} Rb1 {[%emt 0:00:33]} 80. Rxa2+ {[%emt 0:00:05]} Kxa2 {[%emt 0:00:01]} 81. Kc6 {[%emt 0:00:08]} Ka3 {[%emt 0:00:23]} 82. b7 {[%emt 0:00:06]} Ka4 {[%emt 0:00:09]} 83. Kc7 {[%emt 0:00:03]} Rc1+ {[%emt 0:00:07]} 84. Kd7 {[%emt 0:00:07]} Rb1 {[%emt 0:00:08]} 85. Kc7 {[%emt 0:00:06]} 1/2-1/2

[Event "ECo-C Extraliga 2023-24"]
[Site "Slovakia"]
[Date "2024.02.24"]
[Round "7.7"]
[White "Kaczmarek, Aleksander"]
[Black "Szucs, Vladimir"]
[Result "1-0"]
[ECO "C02"]
[WhiteElo "2362"]
[BlackElo "2067"]
[Annotator "TA"]
[PlyCount "47"]
[EventDate "2023.10.06"]
[EventType "team-tourn"]
[EventCountry "SVK"]
[SourceTitle "playchess.com"]
[Source "ChessBase"]
[SourceQuality "1"]
[TimeControl "40/5400+30:1800+30"]

{[%evp 10,47,0,-15,-13,-29,-29,-33,-48,-43,-42,-29,-36,-43,-35,-43,-35,-41,-41,-44,-21,-50,-57,-58,-59,-67,-63,-67,-70,-81,-85,-116,-88,-144,0,0,-18,-12,1225,1242]} 1. e4 {[%emt 0:00:05]} e6 {[%emt 0:00:16]} 2. d4 {[%emt 0:00:32]} d5 {[%emt 0:00:08]} 3. e5 {[%emt 0:00:04]} c5 {[%emt 0:00:08]} 4. c3 {[%emt 0:00:02]} Nc6 {[%emt 0:00:19]} 5. Nf3 {[%emt 0:00:04]} Bd7 {[%emt 0:01:23]} 6. Bd3 {[%emt 0:01:50]} cxd4 {[%emt 0:00:44]} 7. O-O {[%emt 0:01:03]} dxc3 {[%emt 0:04:36]} 8. Nxc3 {[%emt 0:00:06]} Nge7 {[%emt 0:01:18] Black is slightly better.} 9. Bg5 {[%emt 0:02:13] Nb5 is the strong threat.} Qb8 {[%emt 0:05:48]} 10. Re1 {[%emt 0:04:02]} Ng6 {[%emt 0:00:50]} 11. Qe2 {[%emt 0:10:46]} Be7 {[%emt 0:09:28]} 12. Bxe7 {[%emt 0:01:23]} Ncxe7 {[%emt 0:04:00]} 13. g3 {[%emt 0:06:57]} O-O {[%emt 0:04:09]} 14. h4 {[%emt 0:02:54][%cal Bh2h4,Bh4h5][%mdl 32] Strongly threatening h5.} Nc6 {[%emt 0:04:08]} 15. h5 {[%emt 0:06:55]} Nge7 {[%emt 0:00:12]} 16. Rad1 {[%emt 0:11:33][%cal Oh5h6]} f6 {[%emt 0:05:23]} 17. exf6 {[%emt 0:00:39]} gxf6 {[%emt 0:01:00]} 18. Bb1 {[%emt 0:03:31]} Kh8 {[%emt 0:07:19]} 19. a3 {[%emt 0:01:51]} Qe8 {[%emt 0:01:57][%cal Oa8d8]} 20. Kg2 {[%emt 0:04:48]} Rd8 {[%emt 0:08:29][%cal Oe8f7]} (20... Qxh5 21. Rh1 Qf7 22. Rxh7+ (22. Bxh7 Qxh7 23. Ne4 e5 $18) 22... Qxh7 23. Bxh7 Kxh7 24. Rf1 $11) 21. Nb5 {[%emt 0:09:23] [#]} ({Better is} 21. b4) 21... Nc8 {[%emt 0:00:46]} (21... Qxh5 $2 {perishes.} 22. Rh1 Qg4 23. Rxh7+ (23. Bxh7 Kg7 $18) (23. Rh4 Qg7 $18) 23... Kg8 24. Rdh1 $18) ({Black should try} 21... e5 $1 $17 {[%cal Od7g4] And now ...Bg4! would win.} 22. Nh4 Bc8) 22. Rh1 {[%emt 0:06:23]} Qf7 {[%emt 0:02:34]} 23. Nh4 {[%emt 0:01:16]} Rg8 $2 {[%emt 0:03:31][%mdl 8192] [#] Prevents Ng6+.} (23... Kg8 $11) 24. Ng6+ $1 {[%emt 0:00:30][%mdl 512] Weighted Error Value: White=0.11 (very precise) /Black=0.15 (very precise) .  Loses game:     	---       	Black=1      Mistake:       	White=1     	Black=1      Inaccurate:     	White=2     	---        OK:         	White=5     	Black=9      Brilliant:      	White=1     	---} 1-0

[Event "ECo-C Extraliga 2023-24"]
[Site "Slovakia"]
[Date "2024.02.24"]
[Round "7.7"]
[White "Bango, Lukas"]
[Black "Pasti, Aron"]
[Result "0-1"]
[ECO "E06"]
[WhiteElo "2255"]
[BlackElo "2389"]
[Annotator "RC"]
[PlyCount "125"]
[EventDate "2023.10.06"]
[EventType "team-tourn"]
[EventCountry "SVK"]
[SourceTitle "playchess.com"]
[Source "ChessBase"]
[SourceQuality "1"]
[TimeControl "40/5400+30:1800+30"]

1. Nf3 {[%emt 0:00:07]} d5 {[%emt 0:00:04]} 2. d4 {[%emt 0:00:03]} Nf6 {[%emt 0:00:04]} 3. g3 {[%emt 0:00:03]} e6 {[%emt 0:00:36]} 4. Bg2 {[%emt 0:00:05]} Be7 {[%emt 0:00:49]} 5. O-O {[%emt 0:00:07]} O-O {[%emt 0:00:04]} 6. c4 {[%emt 0:00:26]} c6 {[%emt 0:00:04]} 7. Nc3 {[%emt 0:01:21]} b6 {[%emt 0:01:19]} 8. b3 {[%emt 0:01:59]} Ba6 {[%emt 0:02:07]} 9. cxd5 {[%emt 0:05:58]} cxd5 {[%emt 0:00:07]} 10. Bb2 {[%emt 0:00:06]} Nc6 {[%emt 0:02:08]} 11. a3 {[%emt 0:04:34]} Na5 {[%emt 0:05:19]} 12. Re1 {[%emt 0:00:30]} b5 {[%emt 0:06:35]} 13. Ne5 {[%emt 0:05:22]} b4 {[%emt 0:06:36]} 14. Na4 {[%emt 0:01:45]} Ne4 {[%emt 0:20:03]} 15. f3 {[%emt 0:05:58]} Nd6 {[%emt 0:01:42]} 16. e4 {[%emt 0:20:22]} dxe4 {[%emt 0:16:14]} 17. fxe4 {[%emt 0:05:21]} bxa3 {[%emt 0:08:40]} 18. Bxa3 {[%emt 0:09:27]} Bb5 {[%emt 0:00:30]} 19. Nc3 {[%emt 0:00:30]} Be8 {[%emt 0:02:31]} 20. Bc5 {[%emt 0:03:02]} Nab7 {[%emt 0:04:31]} 21. Kh1 {[%emt 0:01:41]} Qc7 {[%emt 0:03:25]} 22. b4 {[%emt 0:02:55]} Nxc5 {[%emt 0:00:12]} 23. bxc5 {[%emt 0:05:41]} Nb5 {[%emt 0:00:06]} 24. Nxb5 {[%emt 0:00:24]} Bxb5 {[%emt 0:00:03]} 25. Qb3 {[%emt 0:01:18]} a6 {[%emt 0:04:58]} 26. Qe3 {[%emt 0:05:02]} Bxc5 {[%emt 0:02:54]} 27. Rec1 {[%emt 0:00:53]} Qxe5 {[%emt 0:00:26]} 28. Rxc5 {[%emt 0:00:03]} Qb8 {[%emt 0:00:45]} 29. e5 {[%emt 0:00:25]} Ra7 {[%emt 0:02:27]} 30. d5 {[%emt 0:00:34]} Rd7 {[%emt 0:05:11]} 31. d6 {[%emt 0:00:37]} f6 {[%emt 0:02:09]} 32. Bh3 {[%emt 0:03:57]} Re8 {[%emt 0:00:00]} 33. exf6 {[%emt 0:03:14]} Qxd6 {[%emt 0:00:15]} 34. fxg7 {[%emt 0:01:58]} Rxg7 {[%emt 0:00:55]} 35. Re1 {[%emt 0:00:16]} Rg6 {[%emt 0:01:55]} 36. Bg2 {[%emt 0:02:18]} Rd8 {[%emt 0:01:18]} 37. Rg5 {[%emt 0:00:42]} Bc4 {[%emt 0:00:45]} 38. Rxg6+ {[%emt 0:02:47]} hxg6 {[%emt 0:00:02]} 39. Qe4 {[%emt 0:00:30]} Qd3 {[%emt 0:00:29]} 40. Qxd3 {[%emt 0:02:11]} Rxd3 {[%emt 0:00:09]} 41. Be4 {[%emt 0:30:10]} Rd2 {[%emt 0:31:28]} 42. Bxg6 {[%emt 0:00:12]} a5 {[%emt 0:00:10]} 43. Kg1 {[%emt 0:05:13]} a4 {[%emt 0:00:00]} 44. Ra1 {[%emt 0:00:00]} Ra2 {[%emt 0:00:00]} 45. Rc1 {[%emt 0:00:00]} Bd5 {[%emt 0:00:00]} 46. h4 {[%emt 0:00:00]} Rg2+ {[%emt 0:00:00]} 47. Kf1 {[%emt 0:00:00]} Rh2 {[%emt 0:00:00]} 48. Rc3 {[%emt 0:00:00]} Ra2 {[%emt 0:00:00]} 49. h5 {[%emt 0:00:00]} Kg7 {[%emt 0:00:00]} 50. Ke1 {[%emt 0:00:00]} Bb3 {[%emt 0:00:00]} 51. Be8 {[%emt 0:03:12]} Rb2 {[%emt 0:00:55]} 52. Rc7+ {[%emt 0:00:49]} Kh6 {[%emt 0:00:01]} 53. Ra7 {[%emt 0:00:23]} Ra2 {[%emt 0:00:02]} 54. g4 {[%emt 0:01:00]} Bd5 {[%emt 0:00:00]} 55. Ra5 {[%emt 0:00:47]} a3 {[%emt 0:01:03]} 56. g5+ {[%emt 0:00:19]} Kxg5 {[%emt 0:03:24]} 57. Bc6 {[%emt 0:00:30]} Kh6 {[%emt 0:00:30]} 58. Bxd5 {[%emt 0:00:38]} exd5 {[%emt 0:00:00]} 59. Kd1 {[%emt 0:00:30]} d4 {[%emt 0:00:11]} 60. Kc1 {[%emt 0:01:35]} d3 {[%emt 0:00:03]} 61. Kd1 {[%emt 0:00:38]} Ra1+ {[%emt 0:00:17]} 62. Kd2 {[%emt 0:00:18]} a2 {[%emt 0:00:30]} 63. Kc3 {[%emt 0:00:30]} 0-1

[Event "ECo-C Extraliga 2023-24"]
[Site "Slovakia"]
[Date "2024.02.24"]
[Round "7.7"]
[White "Gasa, Andrej"]
[Black "Petran, Peter"]
[Result "1-0"]
[ECO "B08"]
[WhiteElo "2140"]
[BlackElo "2205"]
[Annotator "RC"]
[PlyCount "61"]
[EventDate "2023.10.06"]
[EventType "team-tourn"]
[EventCountry "SVK"]
[SourceTitle "playchess.com"]
[Source "ChessBase"]
[SourceQuality "1"]
[TimeControl "40/5400+30:1800+30"]

1. e4 {[%emt 0:00:04]} g6 {[%emt 0:00:05]} 2. d4 {[%emt 0:00:05]} Bg7 {[%emt 0:00:03]} 3. Nf3 {[%emt 0:03:36]} d6 {[%emt 0:00:15]} 4. h3 {[%emt 0:00:49]} Nf6 {[%emt 0:00:24]} 5. Nc3 {[%emt 0:00:35]} O-O {[%emt 0:00:11]} 6. Be3 {[%emt 0:09:40]} c6 {[%emt 0:01:30]} 7. a4 {[%emt 0:05:00]} Qc7 {[%emt 0:00:44]} 8. Bc4 {[%emt 0:06:17]} Nbd7 {[%emt 0:02:20]} 9. Bb3 {[%emt 0:01:50]} b6 {[%emt 0:02:46]} 10. O-O {[%emt 0:01:00]} a6 {[%emt 0:00:28]} 11. e5 {[%emt 0:06:31]} dxe5 {[%emt 0:00:24]} 12. dxe5 {[%emt 0:00:02]} Nxe5 {[%emt 0:00:14]} 13. Nxe5 {[%emt 0:00:02]} Qxe5 {[%emt 0:00:06]} 14. Bxb6 {[%emt 0:00:21]} Nd7 {[%emt 0:06:33]} 15. Re1 {[%emt 0:08:44]} Qd6 {[%emt 0:00:58]} 16. Be3 {[%emt 0:02:08]} Qc7 {[%emt 0:07:28]} 17. a5 {[%emt 0:03:30]} Bxc3 {[%emt 0:10:06]} 18. bxc3 {[%emt 0:00:07]} Nf6 {[%emt 0:15:56]} 19. Qf3 {[%emt 0:12:09]} Nd5 {[%emt 0:03:45]} 20. Bh6 {[%emt 0:03:58]} Rd8 {[%emt 0:02:21]} 21. c4 {[%emt 0:01:57]} Nf6 {[%emt 0:02:34]} 22. Bf4 {[%emt 0:00:19]} Qb7 {[%emt 0:00:39]} 23. Ba4 {[%emt 0:02:31]} Ra7 {[%emt 0:10:49]} 24. Rab1 {[%emt 0:10:43]} Qd7 {[%emt 0:01:58]} 25. Bxc6 {[%emt 0:00:42]} Qf5 {[%emt 0:00:15]} 26. Bb8 {[%emt 0:05:28]} Qxf3 {[%emt 0:00:31]} 27. gxf3 {[%emt 0:00:07]} Rad7 {[%emt 0:01:29]} 28. Bxd7 {[%emt 0:00:09]} Rxd7 {[%emt 0:03:12]} 29. Be5 {[%emt 0:01:44]} Kg7 {[%emt 0:00:14]} 30. Red1 {[%emt 0:00:27]} Ra7 {[%emt 0:00:43]} 31. c5 {[%emt 0:01:31]} 1-0

[Event "ECo-C Extraliga 2023-24"]
[Site "Slovakia"]
[Date "2024.02.24"]
[Round "7.7"]
[White "Sepesi, Samuel"]
[Black "Suchansky, Jakub"]
[Result "1/2-1/2"]
[ECO "B01"]
[WhiteElo "2087"]
[BlackElo "1965"]
[Annotator "NA RC"]
[PlyCount "52"]
[EventDate "2023.10.06"]
[EventType "team-tourn"]
[EventCountry "SVK"]
[SourceTitle "playchess.com"]
[Source "ChessBase"]
[SourceQuality "1"]
[TimeControl "40/5400+30:1800+30"]

1. e4 {[%emt 0:00:05]} d5 {[%emt 0:00:06]} 2. exd5 {[%emt 0:00:09]} Qxd5 {[%emt 0:00:10]} 3. Nc3 {[%emt 0:00:13]} Qa5 {[%emt 0:00:09]} 4. d4 {[%emt 0:00:09]} Nf6 {[%emt 0:00:25]} 5. Bc4 {[%emt 0:02:24]} c6 {[%emt 0:00:17]} 6. Nf3 {[%emt 0:09:51]} Bf5 {[%emt 0:00:33]} 7. Bd2 {[%emt 0:04:03]} Qc7 {[%emt 0:00:34]} 8. Bb3 {[%emt 0:00:45]} e6 {[%emt 0:00:14]} 9. Qe2 {[%emt 0:02:04]} Nbd7 {[%emt 0:01:02]} 10. O-O-O {[%emt 0:01:39]} O-O-O {[%emt 0:00:44]} 11. Rhe1 {[%emt 0:29:33]} Bd6 {[%emt 0:05:03]} 12. h3 {[%emt 0:09:28]} Bf4 {[%emt 0:11:57]} 13. Kb1 {[%emt 0:01:36]} Bxd2 {[%emt 0:06:42]} 14. Rxd2 {[%emt 0:00:58]} Kb8 {[%emt 0:04:59]} 15. Red1 {[%emt 0:09:22]} Nb6 {[%emt 0:05:01]} 16. Qe5 {[%emt 0:08:51]} Qxe5 {[%emt 0:03:55]} 17. dxe5 {[%emt 0:01:17]} Rxd2 {[%emt 0:00:27]} 18. Rxd2 {[%emt 0:02:53]} Ne4 {[%emt 0:01:52]} 19. Nxe4 {[%emt 0:01:25]} Bxe4 {[%emt 0:00:07]} 20. Ng5 {[%emt 0:02:36]} Bg6 {[%emt 0:00:38]} 21. f4 {[%emt 0:00:21]} h6 {[%emt 0:01:05]} 22. f5 {[%emt 0:05:46]} hxg5 {[%emt 0:04:09]} 23. fxg6 {[%emt 0:00:05]} fxg6 {[%emt 0:00:06]} 24. Bxe6 {[%emt 0:04:25]} Re8 {[%emt 0:00:05]} 25. Bg4 {[%emt 0:00:10]} Rxe5 {[%emt 0:00:11]} 26. b3 {[%emt 0:00:32]} Nd5 {[%emt 0:01:27]} 1/2-1/2

[Event "ECo-C Extraliga 2023-24"]
[Site "Slovakia"]
[Date "2024.02.24"]
[Round "7.8"]
[White "Csonka, Attila Istvan"]
[Black "Danada, Tomas"]
[Result "1-0"]
[ECO "C07"]
[WhiteElo "2294"]
[BlackElo "2219"]
[Annotator "ChessBase"]
[PlyCount "101"]
[EventDate "2023.10.06"]
[EventType "team-tourn"]
[EventCountry "SVK"]
[SourceTitle "playchess.com"]
[Source "ChessBase"]
[SourceQuality "1"]
[TimeControl "40/5400+30:1800+30"]

1. e4 {[%emt 0:00:07]} e6 {[%emt 0:00:13]} 2. d4 {[%emt 0:00:06]} d5 {[%emt 0:00:05]} 3. Nd2 {[%emt 0:00:06]} c5 {[%emt 0:00:06]} 4. Ngf3 {[%emt 0:00:07]} Nc6 {[%emt 0:00:13]} 5. Bb5 {[%emt 0:00:27]} a6 {[%emt 0:00:09]} 6. exd5 {[%emt 0:00:08]} axb5 {[%emt 0:00:12]} 7. dxc6 {[%emt 0:00:07]} bxc6 {[%emt 0:00:55]} 8. c3 {[%emt 0:04:31]} Nf6 {[%emt 0:01:08]} 9. O-O {[%emt 0:01:01]} Qd5 {[%emt 0:06:49]} 10. Re1 {[%emt 0:03:20]} cxd4 {[%emt 0:01:08]} 11. Nxd4 {[%emt 0:00:53]} Be7 {[%emt 0:04:27]} 12. Qf3 {[%emt 0:04:07]} Qxf3 {[%emt 0:03:53]} 13. N2xf3 {[%emt 0:00:12]} Ra6 {[%emt 0:00:53]} 14. Ne5 {[%emt 0:00:51]} Bb7 {[%emt 0:00:57]} 15. Bg5 {[%emt 0:05:45]} h6 {[%emt 0:01:46]} 16. Bxf6 {[%emt 0:04:25]} Bxf6 {[%emt 0:07:35]} 17. Nb3 {[%emt 0:02:36]} Be7 {[%emt 0:01:38]} 18. Nd3 {[%emt 0:00:48]} O-O {[%emt 0:04:31]} 19. Ndc5 {[%emt 0:01:30]} Ra7 {[%emt 0:00:47]} 20. Rad1 {[%emt 0:09:13]} Bc8 {[%emt 0:02:34]} 21. a3 {[%emt 0:01:42]} Rd8 {[%emt 0:03:19]} 22. f4 {[%emt 0:06:59]} Rxd1 {[%emt 0:02:39]} 23. Rxd1 {[%emt 0:00:06]} g5 {[%emt 0:02:46]} 24. g3 {[%emt 0:07:28]} Kg7 {[%emt 0:11:32]} 25. Kf2 {[%emt 0:02:02]} g4 {[%emt 0:01:37]} 26. Ke2 {[%emt 0:04:15]} f6 {[%emt 0:03:51]} 27. Ne4 {[%emt 0:08:19]} Rd7 {[%emt 0:06:18]} 28. Rxd7 {[%emt 0:01:57]} Bxd7 {[%emt 0:00:02]} 29. Nbc5 {[%emt 0:00:11]} Bc8 {[%emt 0:00:41]} 30. Nd3 {[%emt 0:00:20]} Kg6 {[%emt 0:02:57]} 31. Ke3 {[%emt 0:16:14]} Kf5 {[%emt 0:00:54]} 32. b3 {[%emt 0:01:24]} e5 {[%emt 0:05:13]} 33. fxe5 {[%emt 0:00:48]} fxe5 {[%emt 0:00:02]} 34. Ndc5 {[%emt 0:00:21]} Be6 {[%emt 0:05:18]} 35. a4 {[%emt 0:00:49]} Bd8 {[%emt 0:03:01]} 36. axb5 {[%emt 0:02:46]} cxb5 {[%emt 0:07:32]} 37. Nd6+ {[%emt 0:00:19]} Kf6 {[%emt 0:00:19]} 38. Nxe6 {[%emt 0:00:46]} Kxe6 {[%emt 0:00:27]} 39. Nxb5 {[%emt 0:00:06]} Kd5 {[%emt 0:00:12]} 40. c4+ {[%emt 0:01:18]} Kc5 {[%emt 0:00:48]} 41. Ke4 {[%emt 0:30:36]} Kb4 {[%emt 0:31:15]} 42. Kxe5 {[%emt 0:02:37]} Kxb3 {[%emt 0:00:54]} 43. c5 {[%emt 0:04:19]} Kc4 {[%emt 0:05:16]} 44. Nd6+ {[%emt 0:00:27]} Kd3 {[%emt 0:00:16]} 45. Kf5 {[%emt 0:02:53]} h5 {[%emt 0:02:25]} 46. c6 {[%emt 0:00:57]} Ke3 {[%emt 0:01:13]} 47. Ne8 {[%emt 0:00:41]} Kf3 {[%emt 0:00:31]} 48. c7 {[%emt 0:00:10]} Bxc7 {[%emt 0:00:16]} 49. Nxc7 {[%emt 0:00:04]} Kg2 {[%emt 0:00:06]} 50. Kg5 {[%emt 0:00:03]} Kxh2 {[%emt 0:00:25]} 51. Kh4 {[%emt 0:00:05]} 1-0

[Event "ECo-C Extraliga 2023-24"]
[Site "Slovakia"]
[Date "2024.02.24"]
[Round "7.8"]
[White "Beres, Tomas"]
[Black "Rucek, Kristian"]
[Result "1-0"]
[ECO "C09"]
[WhiteElo "2128"]
[BlackElo "2168"]
[Annotator "RC"]
[PlyCount "92"]
[EventDate "2023.10.06"]
[EventType "team-tourn"]
[EventCountry "SVK"]
[SourceTitle "playchess.com"]
[Source "ChessBase"]
[SourceQuality "1"]
[TimeControl "40/5400+30:1800+30"]

1. e4 {[%emt 0:00:08]} e6 {[%emt 0:00:55]} 2. d4 {[%emt 0:00:34]} d5 {[%emt 0:00:05]} 3. Nd2 {[%emt 0:00:12]} c5 {[%emt 0:01:59]} 4. exd5 {[%emt 0:00:53]} exd5 {[%emt 0:00:24]} 5. Ngf3 {[%emt 0:00:57]} Nc6 {[%emt 0:00:23]} 6. Be2 {[%emt 0:06:07]} Nf6 {[%emt 0:01:37]} 7. O-O {[%emt 0:00:23]} cxd4 {[%emt 0:02:47]} 8. Nb3 {[%emt 0:02:02]} Be7 {[%emt 0:02:16]} 9. Nfxd4 {[%emt 0:11:03]} O-O {[%emt 0:00:16]} 10. Bf4 {[%emt 0:04:24]} Bd7 {[%emt 0:13:48]} 11. Re1 {[%emt 0:04:14]} Re8 {[%emt 0:03:17]} 12. Bf3 {[%emt 0:12:25]} a5 {[%emt 0:07:23]} 13. a4 {[%emt 0:02:28]} Nxd4 {[%emt 0:03:22]} 14. Qxd4 {[%emt 0:13:18]} Bb4 {[%emt 0:11:17]} 15. c3 {[%emt 0:12:17]} Bf8 {[%emt 0:09:11]} 16. Bg5 {[%emt 0:03:16]} Be6 {[%emt 0:10:09]} 17. Bxf6 {[%emt 0:06:05]} Qxf6 {[%emt 0:01:11]} 18. Qxf6 {[%emt 0:02:04]} gxf6 {[%emt 0:00:02]} 19. Nd4 {[%emt 0:01:32]} Rac8 {[%emt 0:03:16]} 20. Rad1 {[%emt 0:06:11]} Bd6 {[%emt 0:06:24]} 21. Nb5 {[%emt 0:02:03]} Be5 {[%emt 0:00:38]} 22. g3 {[%emt 0:03:16]} Red8 {[%emt 0:13:09]} 23. Bg2 {[%emt 0:01:17]} Rc4 {[%emt 0:03:11]} 24. f4 {[%emt 0:03:11]} Bc7 {[%emt 0:00:01]} 25. Nxc7 {[%emt 0:00:44]} Rxc7 {[%emt 0:00:02]} 26. Rd4 {[%emt 0:00:06]} Rc4 {[%emt 0:04:39]} 27. Red1 {[%emt 0:00:16]} Rd7 {[%emt 0:01:05]} 28. Rxc4 {[%emt 0:01:12]} dxc4 {[%emt 0:00:02]} 29. Rxd7 {[%emt 0:00:09]} Bxd7 {[%emt 0:00:01]} 30. Bxb7 {[%emt 0:00:07]} Bxa4 {[%emt 0:01:43]} 31. Bd5 {[%emt 0:00:41]} Bb5 {[%emt 0:00:41]} 32. Kf2 {[%emt 0:00:06]} Kf8 {[%emt 0:00:23]} 33. Ke3 {[%emt 0:00:05]} Ke7 {[%emt 0:00:08]} 34. Kd4 {[%emt 0:00:06]} Be8 {[%emt 0:00:53]} 35. Kc5 {[%emt 0:00:23]} f5 {[%emt 0:00:36]} 36. Bc6 {[%emt 0:01:18]} Bd7 {[%emt 0:00:41]} 37. Bxd7 {[%emt 0:00:32]} Kxd7 {[%emt 0:00:02]} 38. Kxc4 {[%emt 0:00:34]} Kc6 {[%emt 0:00:01]} 39. b4 {[%emt 0:01:40]} a4 {[%emt 0:00:16]} 40. b5+ {[%emt 0:00:10]} Kb6 {[%emt 0:00:01]} 41. Kb4 {[%emt 0:30:08]} a3 {[%emt 0:30:07]} 42. Kxa3 {[%emt 0:00:04]} Kxb5 {[%emt 0:00:03]} 43. Kb3 {[%emt 0:00:06]} Kc5 {[%emt 0:02:27]} 44. Kc2 {[%emt 0:01:28]} Kc4 {[%emt 0:00:18]} 45. Kd2 {[%emt 0:00:05]} h5 {[%emt 0:00:00]} 46. h4 {[%emt 0:00:00]} Kd5 1-0